fUSD/lending_fUSD_20240105
["ID","MTS","AMOUNT","RATE_DAILY","PERIOD"]
[310267292,1704425516339,-1438.74,0.0003863,3]
[310267293,1704425516351,-713.99,0.0003863,3]
[310267294,1704425516361,-1151.77,0.0003863,3]
[310267295,1704425516370,-500.0,0.0003863,3]
[310267296,1704425516379,-1780.23,0.0003863,3]
[310267297,1704425516388,-1941.56,0.0003863,3]
[310267298,1704425516398,-737.76,0.0003863,3]
[310267299,1704425516409,-507.12,0.0003863,3]
[310267300,1704425516419,-1683.81,0.0003863,3]
[310267301,1704425516429,-757.21,0.0003863,3]
[310267302,1704425516440,-605.55,0.0003863,3]
[310267303,1704425516449,-721.22,0.0003863,3]
[310267304,1704425516459,-1636.73,0.0003863,3]
[310267305,1704425516468,-1818.9,0.0003863,3]
[310267306,1704425516478,-808.83,0.0003863,3]
[310267307,1704425516490,-500.0,0.0003863,3]
[310267308,1704425516499,-1154.3,0.0003863,3]
[310267309,1704425516509,-500.0,0.0003863,3]
[310267310,1704425516519,-2367.44,0.0003863,3]
[310267311,1704425516529,-685.21,0.0003863,3]
[310267312,1704425516538,-720.43,0.0003863,3]
[310267313,1704425516549,-12713.82,0.0003863,3]
[310267314,1704425516559,-537.21,0.0003863,3]
[310267315,1704425516568,-500.0,0.0003863,3]
[310267316,1704425516580,-1128.74,0.0003863,3]
[310267317,1704425516591,-1038.9,0.0003863,3]
[310267318,1704425516600,-856.28,0.0003863,3]
[310267319,1704425516611,-1358.49,0.0003863,3]
[310267320,1704425516621,-1000.47,0.0003863,3]
[310267321,1704425516631,-1014.3,0.0003863,3]
[310267322,1704425516641,-1090.34,0.0003863,3]
[310267323,1704425516651,-1239.16,0.0003863,3]
[310267324,1704425516662,-5374.08,0.0003863,3]
[310267325,1704425516671,-532.58,0.0003863,3]
[310267326,1704425516681,-903.2,0.0003863,3]
[310267327,1704425516691,-500.0,0.0003863,3]
[310267328,1704425516700,-543.93,0.0003863,3]
[310267329,1704425516710,-500.0,0.0003863,3]
[310267330,1704425516720,-847.35,0.0003863,3]
[310267331,1704425516730,-926.28,0.0003863,3]
[310267332,1704425516740,-525.14,0.0003863,3]
[310267333,1704425516749,-500.0,0.0003863,3]
[310267334,1704425516758,-597.71,0.0003863,3]
[310267335,1704425516768,-7505.95,0.0003863,3]
[310267336,1704425516777,-714.54,0.0003863,3]
[310267337,1704425516787,-511.86570843,0.0003863,3]
[310267338,1704425516796,-500.0,0.0003863,3]
[310267339,1704425516805,-500.0,0.0003863,3]
[310267340,1704425516815,-500.0,0.0003863,3]
[310267341,1704425516824,-500.0,0.0003863,3]
[310267342,1704425516833,-500.0,0.0003863,3]
[310267343,1704425516843,-836.59,0.0003863,3]
[310267344,1704425516852,-500.0,0.0003863,3]
[310267345,1704425516862,-500.0,0.0003863,3]
[310267346,1704425516871,-843.48,0.0003863,3]
[310267347,1704425516880,-500.0,0.0003863,3]
[310267348,1704425516890,-500.0,0.0003863,3]
[310267349,1704425516899,-2843.39,0.0003863,3]
[310267350,1704425516908,-731.98,0.0003863,3]
[310267351,1704425516918,-765.74,0.0003863,3]
[310267352,1704425516927,-687.9,0.0003863,3]
[310267353,1704425516936,-500.0,0.0003863,3]
[310267354,1704425516948,-920.29,0.0003863,3]
[310267355,1704425516959,-500.0,0.0003863,3]
[310267356,1704425516968,-608.15,0.0003863,3]
[310267357,1704425516977,-500.0,0.0003863,3]
[310267358,1704425516988,-995.28,0.0003863,3]
[310267359,1704425517000,-1208.34,0.0003863,3]
[310267360,1704425517009,-3826.66,0.0003863,3]
[310267361,1704425517018,-1465.93,0.0003863,3]
[310267362,1704425517028,-2214.47,0.0003863,3]
[310267363,1704425517038,-975.28,0.0003863,3]
[310267364,1704425517047,-500.0,0.0003863,3]
[310267365,1704425517056,-163.0,0.0003863,14]
[310267366,1704425517065,-312.24553362,0.00038638,2]
[310267367,1704425517075,-150.0,0.00038641,2]
[310267368,1704425517085,-312.24553362,0.0003865,2]
[310267369,1704425517094,-444401.6956621,0.0003866,4]
[310267370,1704425517103,-312.24553362,0.00038663,2]
[310267371,1704425517113,-312.24553362,0.00038675,3]
[310267372,1704425517122,-312.24553362,0.00038688,3]
[310267373,1704425517131,-191.33518818,0.00038697,2]
[310267374,1704425517140,-3285.68911405,0.00038698,2]
[310267375,1704425517149,-150.01,0.00038698,2]
[310267376,1704425517158,-151.0,0.00038698,2]
[310267377,1704425517167,-408873.13280637,0.000387,6]
[310267378,1704425517655,-507789.35371035,0.000387,6]
[310267379,1704425517665,-23624.39082356,0.000387,2]
[310267380,1704425517676,-203.06784516,0.000387,7]
[310267381,1704425517685,-150.0,0.000387,28]
[310267382,1704425517695,-150.0,0.000387,14]
[310267383,1704425517704,-2005.24,0.000387,2]
[310267384,1704425517714,-300.0,0.000387,13]
[310267385,1704425517725,-312.24553362,0.000387,3]
[310267386,1704425517735,-508.484674,0.000387,2]
[310267387,1704425517745,-500.0,0.000387,2]
[310267388,1704425517754,-1308.64,0.000387,10]
[310267389,1704425517924,-387.19,0.000387,10]
[310267390,1704425517934,-157.62888482,0.000387,4]
[310267391,1704425517944,-1254.23,0.000387,10]
[310267392,1704425517953,-2213.42,0.000387,10]
[310267393,1704425517964,-1021.0,0.000387,7]
[310267394,1704425517973,-1941.37,0.000387,10]
[310267395,1704425517983,-1806.47,0.000387,5]
[310267396,1704425517993,-58303.4626816,0.00038718,2]
[310267397,1704425518004,-186.844514,0.0003872,7]
[310267398,1704425518016,-168.76259,0.0003872,7]
[310267399,1704425518026,-151.744311,0.0003872,7]
[310267400,1704425518038,-151.0,0.0003872,7]
[310267401,1704425518048,-151.0,0.0003872,7]
[310267402,1704425518058,-151.0,0.0003872,7]
[310267403,1704425518067,-16921.7072955,0.0003872,2]
[310267404,1704425518077,-151.0,0.0003872,7]
[310267405,1704425518085,-8254.5553973,0.0003872,2]
[310267406,1704425518095,-155.694218,0.0003872,7]
[310267407,1704425518105,-55323.05142725,0.0003872,2]
[310267408,1704425518119,-128392.49856505,0.0003872,2]
[310267409,1704425518128,-152.272227,0.0003872,7]
[310267410,1704425518137,-163.954117,0.0003872,7]
[310267411,1704425518148,-151.0,0.0003872,7]
[310267412,1704425518157,-153.859694,0.0003872,7]
[310267413,1704425518166,-208.482203,0.0003872,7]
[310267414,1704425518175,-208.482203,0.0003872,7]
[310267415,1704425518185,-158.048915,0.0003872,7]
[310267416,1704425518194,-151.0,0.0003872,7]
[310267417,1704425518203,-157.798269,0.0003872,7]
[310267418,1704425518212,-618.600043,0.0003872,7]
[310267419,1704425518222,-618.600043,0.0003872,7]
[310267420,1704425518231,-151.0,0.0003872,7]
[310267421,1704425518240,-51370.963816,0.00038726,2]
[310267422,1704425518250,-44438.4649504,0.00038726,2]
[310267423,1704425518260,-37505.9660848,0.00038726,2]
[310267424,1704425518269,-150.0,0.00038737,2]
[310267425,1704425518279,-30573.4672192,0.00038738,2]
[310267426,1704425518288,-23640.9683536,0.00038738,2]
[310267427,1704425518297,-14947.3882519,0.00038744,2]
[310267428,1704425518307,-7298.1105355,0.00038744,2]
[310267429,1704425518316,-162428.6622847,0.00038744,2]
[310267430,1704425518326,-157.63269,0.00038746,7]
[310267431,1704425518336,-151.0,0.00038746,7]
[310267432,1704425518346,-12973.0692083,0.00038753,2]
[310267433,1704425518355,-10998.7501648,0.00038753,2]
[310267434,1704425518365,-6341.6656737,0.00038753,2]
[310267435,1704425518374,-5385.2208119,0.00038753,2]
[310267436,1704425518385,-39267.26655868,0.00038753,2]
[310267437,1704425518398,-670.626,0.00038753,2]
[310267438,1704425518430,-500.0,0.00035616,3]
[310267439,1704425518440,-4026.21,0.00037534,3]
[310267440,1704425518450,-500.0,0.00037808,3]
[310267441,1704425518459,-2874.0,0.0003814,20]
[310267442,1704425518468,-63624.91481056,0.00038753,2]
[310267443,1704425518489,-1503.88522232,0.00038525,20]
[310267444,1704425518514,-358.865,0.00035616,3]
[310267445,1704425518535,-141.135,0.00035616,3]
[310267446,1704425518546,-500.0,0.00036712,3]
[310267447,1704425518555,-1023.62350375,0.00038525,20]
[310267448,1704425518567,-346.49127393,0.00038525,20]
[310267449,1704425518576,-861.12789105,0.00038753,2]
[310267450,1704425518598,-528.76924325,0.00038082,3]
[310267451,1704425518608,-3650.89059822,0.00038753,2]
[310267452,1704425518653,-4026.21,0.00037808,3]
[310267453,1704425518662,-8482.23468645,0.00038753,2]
[310267454,1704425519481,-1267.53629767,0.00023358,2]
[310267455,1704425519681,-2150.07010233,0.00023358,2]
[310267456,1704425519691,-353.61559718,0.00027945,2]
[310267457,1704425519703,-453.78440282,0.00027945,2]
[310267458,1704425519713,-444.16,0.000296,2]
[310267459,1704425519723,-361.23781306,0.00035615,4]
[310267460,1704425519733,-500.0,0.00035616,3]
[310267461,1704425519742,-500.0,0.00035616,3]
[310267462,1704425519753,-513.64175765,0.00035616,3]
[310267463,1704425519762,-500.0,0.00035616,3]
[310267464,1704425519772,-500.0,0.00035616,3]
[310267465,1704425519781,-500.0,0.00035616,3]
[310267466,1704425519790,-518.33748871,0.00035616,3]
[310267467,1704425519799,-267.42398357,0.00035616,3]
[310267468,1704425519809,-500.0,0.00035616,3]
[310267469,1704425519818,-500.0,0.00035616,3]
[310267470,1704425519828,-500.0,0.00035616,3]
[310267471,1704425519838,-500.0,0.0003589,3]
[310267472,1704425519848,-500.0,0.0003589,3]
[310267473,1704425519857,-500.0,0.0003589,3]
[310267474,1704425519867,-500.0,0.0003589,3]
[310267475,1704425519876,-500.0,0.0003589,3]
[310267476,1704425519885,-500.0,0.0003589,3]
[310267477,1704425519895,-500.0,0.0003589,3]
[310267478,1704425519904,-500.0,0.0003589,3]
[310267479,1704425519915,-500.0,0.00036164,3]
[310267480,1704425519926,-500.0,0.00036164,3]
[310267481,1704425519935,-500.0,0.00036164,3]
[310267482,1704425519946,-500.0,0.00036164,3]
[310267483,1704425519957,-597.4214912,0.00036438,3]
[310267484,1704425519967,-500.0,0.00036438,3]
[310267485,1704425519977,-500.0,0.00036712,3]
[310267486,1704425519986,-500.0,0.00036986,3]
[310267487,1704425519996,-500.0,0.00036986,3]
[310267488,1704425520006,-348.91079346,0.0003726,3]
[310267489,1704425520016,-500.0,0.0003726,3]
[310267490,1704425520025,-500.0,0.00037534,3]
[310267491,1704425520034,-500.0,0.00037808,3]
[310267492,1704425520044,-4026.21,0.00038082,3]
[310267493,1704425520054,-500.0,0.00038082,3]
[310267494,1704425520064,-4026.21,0.00038356,3]
[310267495,1704425520074,-500.0,0.00038356,3]
[310267496,1704425520083,-4026.21,0.0003863,3]
[310267497,1704425520093,-500.0,0.0003863,3]
[310267498,1704425520104,-24584.71403214,0.00038753,2]
[310267499,1704425520113,-119854.8868695,0.00038753,2]
[310267500,1704425520123,-9024.4311212,0.00038764,2]
[310267501,1704425520132,-7050.1120776,0.00038764,2]
[310267502,1704425520142,-4428.7759502,0.00038764,2]
[310267503,1704425520151,-3472.3310884,0.00038764,2]
[310267504,1704425520161,-98486.81644999,0.00038764,2]
[310267505,1704425523620,155.59,0.00022253,2]
[310267506,1704425524782,23900.0,0.00022177,2]
[310267507,1704425573973,1000.0,0.00022177,2]
[310267508,1704425597905,161.28,0.00022177,10]
[310267509,1704425631652,500.0,0.00022177,2]
[310267510,1704425684771,150.0,0.00022177,2]
[310267511,1704425721946,651.86,0.00020259,2]
[310267512,1704425732564,158.91,0.00022177,2]
[310267513,1704425754560,2000.0,0.00022177,2]
[310267514,1704425939183,23900.0,0.00022177,2]
[310267515,1704426032846,1741.32,0.00029,30]
[310267516,1704426069263,500.0,0.00022177,2]
[310267517,1704426186258,2000.0,0.00022177,2]
[310267518,1704426220602,619.26,0.00020259,2]
[310267519,1704426240359,-2140.03006782,0.00022501,2]
[310267520,1704426240385,-1200.35308665,0.00022502,2]
[310267521,1704426240412,-1659.61684553,0.00022503,2]
[310267522,1704426252032,-3659.65781289,0.00022503,2]
[310267524,1704426421781,174.71493463,0.00022423,2]
[310267525,1704426455391,161.28,0.00022177,10]
[310267529,1704426631732,-329.66712704,0.00022513,2]
[310267530,1704426631794,-4989.60753138,0.00022513,2]
[310267531,1704426631804,-2140.03006782,0.00022514,2]
[310267532,1704426631813,-619.26,0.00022523,2]
[310267533,1704426631822,-296.23818044,0.00022999,4]
[310267534,1704426631831,-150.0,0.00023258,2]
[310267535,1704426631841,-2158.41387145,0.00023259,2]
[310267536,1704426631853,-2174.56017211,0.00023259,2]
[310267537,1704426631873,-2174.12962291,0.00023259,2]
[310267538,1704426631920,-7352.50002876,0.00023259,2]
[310267539,1704426631985,-1055.40624002,0.00023259,2]
[310267540,1704426632015,-350.0,0.00023259,2]
[310267541,1704426632028,-807.94253155,0.00023259,2]
[310267542,1704426632039,-623.18625351,0.00023259,2]
[310267543,1704426632051,-2714.51597969,0.00023259,2]
[310267544,1704426632060,-280.86372018,0.00023259,2]
[310267545,1704426632072,-1532.87747982,0.00023259,2]
[310267546,1704426632081,-347.24082026,0.00023357,2]
[310267547,1704426632092,-187.46121742,0.00023357,2]
[310267549,1704426637865,-2713.33854898,0.00023357,2]
[310267550,1704426637875,-9489.44456976,0.00023359,2]
[310267551,1704426637886,-3476.33330977,0.00023359,2]
[310267552,1704426637941,-28838.01932047,0.00023359,2]
[310267553,1704426637951,-100000.0,0.00023359,2]
[310267554,1704426637961,-250.0,0.00024658,2]
[310267555,1704426637970,-619.26,0.00024787,2]
[310267556,1704426637981,-1000.0,0.00024949,2]
[310267557,1704426637990,-183.62,0.00024971,2]
[310267558,1704426638000,-300.0,0.00024999,2]
[310267559,1704426638009,-300.0,0.00024999,2]
[310267560,1704426638019,-300.0,0.00024999,2]
[310267561,1704426638030,-258.29537416,0.00024999,2]
[310267562,1704426638040,-1580.1889945,0.00025,2]
[310267563,1704426638050,-210.0,0.00025584,2]
[310267564,1704426638059,-426.45858407,0.00027,5]
[310267565,1704426638069,-250.0,0.00027,3]
[310267566,1704426638078,-619.26,0.00027051,2]
[310267567,1704426638087,-150.0,0.00027591,2]
[310267568,1704426638098,-250.0,0.00027645,2]
[310267569,1704426638106,-368.44,0.00027702,2]
[310267570,1704426638116,-1000.0,0.00027721,2]
[310267571,1704426638125,-1658.96579459,0.00027944,2]
[310267572,1704426638135,-2699.14,0.00027945,2]
[310267573,1704426638144,-672.83,0.00027945,2]
[310267574,1704426638153,-250.0,0.00028203,2]
[310267575,1704426638163,-300.0,0.00029,3]
[310267576,1704426638172,-2500.0,0.00029093,2]
[310267577,1704426638182,-23900.0,0.00029193,2]
[310267578,1704426638191,-619.26,0.00029315,2]
[310267579,1704426638203,-150.0,0.00029704,2]
[310267580,1704426638212,-2545.93649865,0.0003,4]
[310267581,1704426638222,-43715.60635109,0.0003,4]
[310267582,1704426638231,-1305.27584584,0.0003,3]
[310267583,1704426638242,-153.84,0.00030137,2]
[310267584,1704426638252,-10000.0,0.00030137,2]
[310267585,1704426638262,-358.36929423,0.00030477,14]
[310267587,1704426638272,-546.218,0.00030477,2]
[310267589,1704426638281,-200.998,0.00030477,2]
[310267591,1704426638291,-1000.0,0.00030494,2]
[310267593,1704426638300,-350.0,0.00031,3]
[310267595,1704426638311,-153.84,0.0003105,2]
[310267597,1704426638320,-200.0,0.00031333,2]
[310267599,1704426638330,-619.26,0.00031579,2]
[310267601,1704426638342,-1134.21734944,0.00031952,5]
[310267603,1704426638355,-153.84,0.00031963,2]
[310267605,1704426638364,-490.74590616,0.00032,4]
[310267607,1704426638374,-79840.03935415,0.00032,2]
[310267608,1704426638383,-155.0,0.00032052,2]
[310267610,1704426638392,-153.84,0.00032877,2]
[310267612,1704426638401,-179.54,0.00032877,15]
[310267613,1704426638410,-1000.0,0.000329,2]
[310267615,1704426638420,-150.0,0.000329,2]
[310267616,1704426638431,-1134.21734938,0.00032916,6]
[310267617,1704426638440,-400.0,0.00033,3]
[310267618,1704426638449,-275.58196229,0.00033,4]
[310267619,1704426638459,-1000.0,0.00033266,2]
[310267620,1704426638468,-153.81315469,0.00033743,2]
[310267621,1704426638478,-153.84,0.0003379,2]
[310267622,1704426638487,-191.33518818,0.00033839,2]
[310267623,1704426638496,-186135.4288299,0.00033842,2]
[310267624,1704426638537,-653.67901261,0.00033842,2]
[310267625,1704426638549,-8297.84522934,0.00033842,2]
[310267626,1704426638569,-1799.53953366,0.00033842,2]
[310267627,1704426638589,-491.64613668,0.00033842,2]
[310267628,1704426638602,-13050.0,0.00033842,2]
[310267629,1704426638614,-1559.72332936,0.00033842,2]
[310267630,1704426638626,-804.44778,0.00033842,2]
[310267631,1704426638638,-28392.23217719,0.00033842,2]
[310267632,1704426638654,-1175292.89565199,0.00033842,2]
[310267633,1704426638663,-619.26,0.00033843,2]
[310267634,1704426638672,-1134.21734938,0.0003388,6]
[310267635,1704426638682,-215.97400956,0.000339,6]
[310267636,1704426638692,-155.0,0.00034,2]
[310267637,1704426638701,-1000.0,0.00034,4]
[310267638,1704426638710,-215.97400947,0.00034336,6]
[310267639,1704426638720,-245.77,0.00034521,2]
[310267640,1704426638731,-157.39326305,0.00034545,4]
[310267641,1704426638740,-281.46452687,0.00034644,7]
[310267642,1704426638749,-153.84,0.00034703,2]
[310267643,1704426638759,-215.97400947,0.00034773,7]
[310267644,1704426638768,-1000.0,0.00034794,2]
[310267645,1704426638778,-234.40105,0.00034798,2]
[310267646,1704426638787,-1134.21734938,0.00034844,7]
[310267647,1704426638796,-234.40105,0.00034898,2]
[310267648,1704426638805,-798.59923266,0.000349,2]
[310267649,1704426638814,-234.40105,0.00034998,2]
[310267650,1704426638823,-10892.51,0.00035,2]
[310267651,1704426638833,-18961.25296946,0.00035,4]
[310267652,1704426638842,-450.0,0.00035,3]
[310267653,1704426638854,-195.21945301,0.00035,2]
[310267654,1704426638863,-234.40105,0.00035098,2]
[310267655,1704426638873,-153.81315469,0.00035112,2]
[310267656,1704426638883,-208.0,0.00035158,2]
[310267657,1704426638893,-234.40105,0.00035198,2]
[310267658,1704426638904,-23745.0,0.000352,3]
[310267659,1704426638914,-215.97400947,0.00035209,7]
[310267660,1704426638925,-200.0,0.00035249,2]
[310267661,1704426638938,-495.62026608,0.00035257,4]
[310267662,1704426638949,-234.40105,0.00035298,2]
[310267663,1704426638959,-234.40105,0.00035398,2]
[310267664,1704426638969,-155.41454198,0.00035436,4]
[310267665,1704426638979,-234.40105,0.00035498,2]
[310267666,1704426638989,-55555.0,0.00035514,3]
[310267667,1704426638998,-5000.0,0.00035516,2]
[310267668,1704426639008,-167.0,0.00035584,2]
[310267669,1704426639020,-167.0,0.00035584,2]
[310267670,1704426639030,-234.40105,0.00035598,2]
[310267671,1704426639040,-500.0,0.000356,2]
[310267672,1704426639049,-181.32,0.00035606,10]
[310267673,1704426639059,-151.1,0.00035606,10]
[310267674,1704426639068,-293.56797325,0.00035613,2]
[310267675,1704426639078,-322.19493019,0.00035613,4]
[310267676,1704426639087,-252.97551603,0.00035613,2]
[310267677,1704426639097,-3423.81872806,0.00035613,4]
[310267678,1704426639110,-284.9548467,0.00035613,4]
[310267679,1704426639120,-277.57919509,0.00035613,4]
[310267680,1704426639130,-156.19252824,0.00035614,2]
[310267681,1704426639139,-287.3142761,0.00035614,2]
[310267682,1704426639148,-88405.72456606,0.00035614,2]
[310267683,1704426639158,-1415590.39346513,0.00035616,3]
[310267684,1704426639167,-1779.97,0.00035616,2]
[310267685,1704426639177,-165.64,0.00035616,2]
[310267686,1704426639186,-500.0,0.00035616,3]
[310267687,1704426639196,-500.0,0.00035616,3]
[310267688,1704426639205,-503.46421148,0.00035616,3]
[310267689,1704426639214,-503.11470788,0.00035616,3]
[310267690,1704426639224,-503.23019612,0.00035616,3]
[310267691,1704426639233,-500.0,0.00035616,3]
[310267692,1704426639242,-667.98,0.00035616,3]
[310267693,1704426639255,-500.0,0.00035616,3]
[310267694,1704426639265,-475.28680231,0.00035616,3]
[310267695,1704426639274,-500.0,0.00035616,3]
[310267696,1704426639284,-500.0,0.00035616,3]
[310267697,1704426639293,-502.87857579,0.00035616,3]
[310267698,1704426639303,-480.92786736,0.00035616,3]
[310267699,1704426639313,-500.0,0.00035616,3]
[310267700,1704426639323,-500.0,0.00035616,3]
[310267701,1704426639332,-502.75625543,0.00035616,3]
[310267702,1704426639342,-501.85605925,0.00035616,3]
[310267703,1704426639352,-502.11103735,0.00035616,3]
[310267704,1704426639362,-502.55747134,0.00035616,3]
[310267705,1704426639371,-500.0,0.00035616,3]
[310267706,1704426639381,-583.67388046,0.00035616,3]
[310267707,1704426639390,-500.0,0.00035616,3]
[310267708,1704426639400,-501.27099846,0.00035616,3]
[310267709,1704426639415,-502.46424636,0.00035616,3]
[310267710,1704426639426,-503.4021264,0.00035616,3]
[310267711,1704426639435,-502.80660294,0.00035616,3]
[310267712,1704426639445,-150.08930569,0.00035616,3]
[310267713,1704426639454,-500.0,0.00035616,3]
[310267714,1704426639463,-500.0,0.00035616,3]
[310267715,1704426639473,-500.0,0.00035616,3]
[310267716,1704426639482,-500.0,0.00035616,3]
[310267717,1704426639491,-500.0,0.00035616,3]
[310267718,1704426639501,-179.36976091,0.00035616,3]
[310267719,1704426639510,-500.0,0.00035616,3]
[310267721,1704426639521,-500.0,0.00035616,3]
[310267723,1704426639530,-502.18302034,0.00035616,3]
[310267725,1704426639539,-322.36385196,0.00035616,3]
[310267727,1704426639551,-375.20374761,0.00035616,3]
[310267729,1704426639561,-500.0,0.00035616,3]
[310267731,1704426639571,-500.0,0.00035616,3]
[310267733,1704426639581,-500.0,0.00035616,3]
[310267735,1704426639590,-500.0,0.00035616,3]
[310267738,1704426639601,-500.0,0.00035616,3]
[310267740,1704426639611,-509.55013023,0.00035616,3]
[310267741,1704426639622,-500.0,0.00035616,3]
[310267742,1704426639631,-525.64130365,0.00035616,3]
[310267743,1704426639640,-500.0,0.00035616,3]
[310267744,1704426639649,-500.0,0.00035616,3]
[310267745,1704426639658,-500.0,0.00035616,3]
[310267746,1704426639666,-500.0,0.00035616,3]
[310267747,1704426639675,-500.0,0.00035616,3]
[310267748,1704426639684,-500.0,0.00035616,3]
[310267749,1704426639693,-190.5,0.00035616,3]
[310267750,1704426639703,-500.0,0.00035616,3]
[310267751,1704426639712,-500.0,0.00035616,3]
[310267752,1704426639724,-500.0,0.00035616,3]
[310267753,1704426639734,-500.0,0.00035616,3]
[310267754,1704426639743,-500.0,0.00035616,3]
[310267755,1704426639753,-511.61269872,0.00035616,3]
[310267756,1704426639762,-393.65189244,0.00035616,3]
[310267757,1704426639771,-500.0,0.00035616,3]
[310267758,1704426639781,-500.0,0.00035616,3]
[310267759,1704426639790,-500.0,0.00035616,3]
[310267760,1704426639800,-500.0,0.00035616,3]
[310267761,1704426639809,-588.8509203,0.00035616,3]
[310267762,1704426639819,-191.20309436,0.00035616,3]
[310267763,1704426639828,-500.0,0.00035616,3]
[310267764,1704426639837,-524.23445849,0.00035616,3]
[310267765,1704426639846,-500.0,0.00035616,3]
[310267766,1704426639859,-500.0,0.00035616,3]
[310267767,1704426639870,-500.0,0.00035616,3]
[310267768,1704426639879,-500.0,0.00035616,3]
[310267769,1704426639888,-500.0,0.00035616,3]
[310267770,1704426639897,-511.07278817,0.00035616,3]
[310267771,1704426639906,-473.0,0.00035616,3]
[310267772,1704426640119,-621.95462567,0.00035616,3]
[310267773,1704426640129,-500.0,0.00035616,3]
[310267774,1704426640138,-500.0,0.00035616,3]
[310267775,1704426640147,-500.0,0.00035616,2]
[310267776,1704426640156,-500.0,0.00035616,3]
[310267777,1704426640165,-520.34169781,0.00035616,3]
[310267778,1704426640175,-500.0,0.00035616,3]
[310267779,1704426640185,-374.2838451,0.00035616,3]
[310267780,1704426640194,-500.0,0.00035616,3]
[310267781,1704426640203,-500.0,0.00035616,3]
[310267782,1704426640212,-500.0,0.00035616,3]
[310267783,1704426640221,-500.0,0.00035616,3]
[310267784,1704426640230,-541.17253995,0.00035616,3]
[310267785,1704426640239,-500.0,0.00035616,3]
[310267786,1704426640249,-500.0,0.00035616,3]
[310267787,1704426640258,-500.0,0.00035616,3]
[310267788,1704426640267,-500.0,0.00035616,3]
[310267789,1704426640277,-577.99538843,0.00035616,3]
[310267790,1704426640286,-500.0,0.00035616,3]
[310267791,1704426640295,-491.54378638,0.00035616,3]
[310267792,1704426640304,-500.0,0.00035616,3]
[310267793,1704426640313,-500.0,0.00035616,3]
[310267794,1704426640323,-500.0,0.00035616,3]
[310267795,1704426640332,-522.40544044,0.00035616,3]
[310267796,1704426640341,-500.0,0.00035616,3]
[310267797,1704426640352,-500.0,0.00035616,3]
[310267799,1704426640362,-500.0,0.00035616,3]
[310267800,1704426640372,-500.0,0.00035616,3]
[310267802,1704426640381,-537.17251472,0.00035616,3]
[310267804,1704426640390,-500.0,0.00035616,3]
[310267806,1704426640399,-500.0,0.00035616,3]
[310267808,1704426640409,-556.73390389,0.00035616,3]
[310267809,1704426640419,-500.0,0.00035616,3]
[310267810,1704426640432,-537.82435374,0.00035616,3]
[310267811,1704426640442,-500.0,0.00035616,3]
[310267812,1704426640452,-500.0,0.00035616,3]
[310267813,1704426640462,-503.75479229,0.00035616,3]
[310267814,1704426640470,-500.0,0.00035616,3]
[310267815,1704426640480,-500.0,0.00035616,3]
[310267816,1704426640489,-563.42351579,0.00035616,3]
[310267817,1704426640498,-500.0,0.00035616,3]
[310267818,1704426640507,-500.0,0.00035616,3]
[310267819,1704426640517,-525.50113636,0.00035616,3]
[310267820,1704426640526,-500.0,0.00035616,3]
[310267821,1704426640536,-500.0,0.00035616,3]
[310267822,1704426640545,-500.0,0.00035616,3]
[310267823,1704426640555,-500.0,0.00035616,3]
[310267824,1704426640566,-500.0,0.00035616,3]
[310267825,1704426640575,-517.07626585,0.00035616,3]
[310267826,1704426640584,-629.77746113,0.00035616,3]